bitfinex-derivatives/quotes_BTCF0:USTF0_20210109
["timestamp","ask_amount","ask_price","bid_price","bid_amount"]
[1610230979832,0.1669779,40430.0,40429.0,0.13632608]
[1610230983243,0.22767502,40430.0,40429.0,0.13632608]
[1610230983842,0.1669779,40430.0,40429.0,0.13632608]
[1610231034504,0.03065182,40430.0,40417.0,1.0]
[1610231034907,0.09133658,40436.0,40417.0,1.0]
[1610231035106,0.09133658,40436.0,40428.0,0.13632608]
[1610231035506,0.16533658,40436.0,40428.0,0.13632608]
[1610231036008,0.03064643,40435.0,40428.0,0.13632608]
[1610231036508,0.09133629,40436.0,40428.0,0.13632608]
[1610231037108,0.13632608,40429.0,40428.0,0.13632608]
[1610231037709,0.16697243,40429.0,40428.0,0.13632608]
[1610231042114,0.16697243,40429.0,40414.0,1.0]
[1610231042714,0.03064814,40428.0,40414.0,1.0]
[1610231042914,0.12714814,40428.0,40414.0,1.0]
[1610231043114,0.12714814,40428.0,40419.0,0.13632608]
[1610231043514,0.03064686,40427.0,40419.0,0.13632608]
[1610231045115,0.13632608,40420.0,40419.0,0.13632608]
[1610231045514,1.16697356,40420.0,40419.0,0.13632608]
[1610231052926,1.24187356,40420.0,40419.0,0.13632608]
[1610231053426,0.24187356,40420.0,40419.0,0.13632608]
[1610231053627,1.24187356,40420.0,40419.0,0.13632608]
[1610231054627,1.16697356,40420.0,40419.0,0.13632608]
[1610231055527,1.24207356,40420.0,40419.0,0.13632608]
[1610231057028,1.16697356,40420.0,40419.0,0.13632608]
[1610231058028,1.24037356,40420.0,40419.0,0.13632608]
[1610231058429,1.16697356,40420.0,40419.0,0.13632608]
[1610231059332,1.24177356,40420.0,40419.0,0.13632608]
[1610231059734,1.3024622,40420.0,40419.0,0.13632608]
[1610231061037,1.2276622,40420.0,40419.0,0.13632608]
[1610231062139,1.3011622,40420.0,40419.0,0.13632608]
[1610231065142,1.2276622,40420.0,40419.0,0.13632608]
[1610231066743,1.16697356,40420.0,40419.0,0.13632608]
[1610231066943,1.22766266,40420.0,40419.0,0.13632608]
[1610231067344,1.30156266,40420.0,40419.0,0.13632608]
[1610231067944,1.22766266,40420.0,40419.0,0.13632608]
[1610231069044,1.30296266,40420.0,40419.0,0.13632608]
[1610231069244,1.16697356,40420.0,40419.0,0.13632608]
[1610231069445,1.22766379,40420.0,40419.0,0.13632608]
[1610231069647,1.16697356,40420.0,40419.0,0.13632608]
[1610231070347,1.24027356,40420.0,40419.0,0.13632608]
[1610231070547,1.30096477,40420.0,40419.0,0.13632608]
[1610231070948,1.24027356,40420.0,40419.0,0.13632608]
[1610231071548,1.16697356,40420.0,40419.0,0.13632608]
[1610231072347,1.22766526,40420.0,40419.0,0.13632608]
[1610231072548,1.16697356,40420.0,40419.0,0.13632608]
[1610231072747,1.22766566,40420.0,40419.0,0.13632608]
[1610231073650,1.16697356,40420.0,40419.0,0.13632608]
[1610231075054,1.22766684,40420.0,40419.0,0.13632608]
[1610231075252,1.16697356,40420.0,40419.0,0.13632608]
[1610231075452,1.22766701,40420.0,40419.0,0.13632608]
[1610231076052,1.16697356,40420.0,40419.0,0.13632608]
[1610231078156,1.22766643,40420.0,40419.0,0.13632608]
[1610231078358,1.30176643,40420.0,40419.0,0.13632608]
[1610231079959,1.24107356,40420.0,40419.0,0.13632608]
[1610231080160,1.16697356,40420.0,40419.0,0.13632608]
[1610231080559,1.22766642,40420.0,40419.0,0.13632608]
[1610231081061,1.30226642,40420.0,40419.0,0.13632608]
[1610231081661,1.22766642,40420.0,40419.0,0.13632608]
[1610231082661,1.30186642,40420.0,40419.0,0.13632608]
[1610231083065,1.22766642,40420.0,40419.0,0.13632608]
[1610231084067,1.30276642,40420.0,40419.0,0.13632608]
[1610231090077,1.22766642,40420.0,40419.0,0.13632608]
[1610231091278,1.30096642,40420.0,40419.0,0.13632608]
[1610231092483,1.22766642,40420.0,40419.0,0.13632608]
[1610231093483,0.22766642,40420.0,40419.0,0.13632608]
[1610231093884,0.16697356,40420.0,40419.0,0.13632608]
[1610231094283,0.22766596,40420.0,40419.0,0.13632608]
[1610231095285,0.09133988,40420.0,40419.0,0.13632608]
[1610231103996,0.09134184,40421.0,40419.0,0.13632608]
[1610231104196,0.0306493,40420.0,40419.0,0.13632608]
[1610231104597,0.06069225,40421.0,40419.0,0.13632608]
[1610231104598,0.09134098,40421.0,40419.0,0.13632608]
[1610231104798,0.03064942,40420.0,40419.0,0.13632608]
[1610231105399,0.09134164,40421.0,40419.0,0.13632608]
[1610231105597,0.03064939,40420.0,40419.0,0.13632608]
[1610231106097,0.09134164,40421.0,40419.0,0.13632608]
[1610231106297,0.03064931,40420.0,40419.0,0.13632608]
[1610231106698,0.09134154,40421.0,40419.0,0.13632608]
[1610231106898,0.0306497,40420.0,40419.0,0.13632608]
[1610231107500,0.09134192,40421.0,40419.0,0.13632608]
[1610231107701,0.0306493,40420.0,40419.0,0.13632608]
[1610231108202,0.09134187,40421.0,40419.0,0.13632608]
[1610231108602,0.03064952,40420.0,40419.0,0.13632608]
[1610231109002,0.09134134,40421.0,40419.0,0.13632608]
[1610231109203,0.00030346,40420.0,40419.0,0.13632608]
[1610231109404,0.03064911,40420.0,40419.0,0.13632608]
[1610231109605,0.09134143,40421.0,40419.0,0.13632608]
[1610231109805,0.03064916,40420.0,40419.0,0.13632608]
[1610231110406,0.09134109,40421.0,40419.0,0.13632608]
[1610231110607,0.03064877,40420.0,40419.0,0.13632608]
[1610231111207,0.091341,40421.0,40419.0,0.13632608]
[1610231111407,0.0306488,40420.0,40419.0,0.13632608]
[1610231112007,0.0913411,40421.0,40419.0,0.13632608]
[1610231112208,0.03064885,40420.0,40419.0,0.13632608]
[1610231112810,0.09134107,40421.0,40419.0,0.13632608]
[1610231113009,0.03064892,40420.0,40419.0,0.13632608]
[1610231113509,0.09134122,40421.0,40419.0,0.13632608]
[1610231113709,0.03064895,40420.0,40419.0,0.13632608]
[1610231114009,0.09134122,40421.0,40419.0,0.13632608]
[1610231114209,0.03034554,40420.0,40419.0,0.13632608]
[1610231114409,0.030649,40420.0,40419.0,0.13632608]
[1610231114610,0.09134118,40421.0,40419.0,0.13632608]
[1610231114810,0.03064883,40420.0,40419.0,0.13632608]
[1610231115312,0.06069225,40421.0,40419.0,0.13632608]
[1610231115313,0.09134144,40421.0,40419.0,0.13632608]
[1610231116612,0.03064919,40421.0,40419.0,0.13632608]
[1610231118112,0.03064912,40422.0,40419.0,0.13632608]
[1610231118313,1.0,40423.0,40419.0,0.13632608]
[1610231118314,0.03064857,40420.0,40419.0,0.13632608]
[1610231118513,0.03064847,40421.0,40419.0,0.13632608]
[1610231118713,0.00030346,40420.0,40419.0,0.13632608]
[1610231118914,0.03064887,40420.0,40419.0,0.13632608]
[1610231119114,0.03064892,40422.0,40419.0,0.13632608]
[1610231119314,0.03064862,40420.0,40419.0,0.13632608]
[1610231119513,0.03064851,40421.0,40419.0,0.13632608]
[1610231119915,0.03064844,40422.0,40419.0,0.13632608]
[1610231120118,0.03064837,40420.0,40419.0,0.13632608]
[1610231120417,0.03064832,40421.0,40419.0,0.13632608]
[1610231120615,0.03064842,40420.0,40419.0,0.13632608]
[1610231121017,0.03064889,40422.0,40419.0,0.13632608]
[1610231121217,0.03064924,40420.0,40419.0,0.13632608]
[1610231121418,0.03064979,40421.0,40419.0,0.13632608]
[1610231121819,0.03065021,40422.0,40419.0,0.13632608]
[1610231122018,0.03064957,40420.0,40419.0,0.13632608]
[1610231122219,0.0306517,40421.0,40419.0,0.13632608]
[1610231122519,0.03065136,40422.0,40419.0,0.13632608]
[1610231122721,0.03065136,40420.0,40419.0,0.13632608]
[1610231123022,0.03065155,40422.0,40419.0,0.13632608]
[1610231123421,0.03065151,40420.0,40419.0,0.13632608]
[1610231123620,0.03065119,40421.0,40419.0,0.13632608]
[1610231123821,0.03065119,40420.0,40419.0,0.13632608]
[1610231124321,0.03065139,40422.0,40419.0,0.13632608]
[1610231125122,0.09134655,40422.0,40419.0,0.13632608]
[1610231125523,0.03065139,40422.0,40419.0,0.13632608]
[1610231125723,0.03065098,40421.0,40419.0,0.13632608]
[1610231126323,0.03065035,40422.0,40419.0,0.13632608]
[1610231126523,0.03065035,40420.0,40419.0,0.13632608]
[1610231126722,0.03065043,40421.0,40419.0,0.13632608]
[1610231127023,1.0,40423.0,40419.0,0.13632608]
[1610231127024,0.03065043,40420.0,40419.0,0.13632608]
[1610231127624,0.03065049,40422.0,40419.0,0.13632608]
[1610231127825,0.03065049,40420.0,40419.0,0.13632608]
[1610231128027,0.03065041,40421.0,40419.0,0.13632608]
[1610231128425,0.09134418,40423.0,40419.0,0.13632608]
[1610231128625,0.03065037,40420.0,40419.0,0.13632608]
[1610231128825,0.03065029,40422.0,40419.0,0.13632608]
[1610231129127,0.03065029,40423.0,40419.0,0.13632608]
[1610231129328,0.03065081,40421.0,40419.0,0.13632608]
[1610231129728,0.03065081,40423.0,40419.0,0.13632608]
[1610231129928,0.03065111,40420.0,40419.0,0.13632608]
[1610231130128,0.09134639,40423.0,40419.0,0.13632608]
[1610231133335,0.03065113,40423.0,40419.0,0.13632608]
[1610231136339,0.09134947,40423.0,40419.0,0.13632608]
[1610231143147,0.03065113,40423.0,40419.0,0.13632608]
[1610231143552,0.03065211,40422.0,40419.0,0.13632608]
[1610231143748,0.09134927,40423.0,40419.0,0.13632608]
[1610231143949,0.0306516,40421.0,40419.0,0.13632608]
[1610231144248,0.03065132,40422.0,40419.0,0.13632608]
[1610231144449,0.03065109,40420.0,40419.0,0.13632608]
[1610231144849,0.03065064,40423.0,40419.0,0.13632608]
[1610231145050,0.03065076,40420.0,40419.0,0.13632608]
[1610231145250,0.03065076,40422.0,40419.0,0.13632608]
[1610231145650,0.09134534,40423.0,40419.0,0.13632608]
[1610231145851,0.03065084,40421.0,40419.0,0.13632608]
[1610231146052,0.03065115,40422.0,40419.0,0.13632608]
[1610231146449,0.03065103,40420.0,40419.0,0.13632608]
[1610231146649,0.030651,40421.0,40419.0,0.13632608]
[1610231146851,0.03065096,40420.0,40419.0,0.13632608]
[1610231147453,0.03065115,40423.0,40419.0,0.13632608]
[1610231147654,0.03065115,40420.0,40419.0,0.13632608]
[1610231147853,0.03065115,40422.0,40419.0,0.13632608]
[1610231148155,0.03065113,40423.0,40419.0,0.13632608]
[1610231157261,0.03065113,40423.0,40411.0,3.0843]
[1610231157662,0.13632608,40423.0,40422.0,0.13632608]
[1610231157963,0.16697609,40423.0,40422.0,0.13632608]
[1610231176285,0.16673493,40423.0,40422.0,0.13632608]
[1610231184801,0.16673493,40423.0,40422.0,3.47972608]
[1610231188904,0.03065001,40423.0,40422.0,3.3434]
[1610231189505,0.03064939,40427.0,40422.0,3.3434]
[1610231189705,0.03064935,40423.0,40422.0,3.3434]
[1610231189906,0.03064935,40426.0,40422.0,3.3434]
[1610231190307,0.03064935,40427.0,40425.0,0.13632608]
[1610231190509,0.0965,40428.0,40425.0,0.13632608]
[1610231190708,0.03064923,40426.0,40425.0,0.13632608]
[1610231191108,0.09134316,40429.0,40425.0,0.13632608]
[1610231191309,0.11204099,40426.0,40425.0,0.13632608]
[1610231191508,0.08139,40426.0,40425.0,0.13632608]
[1610231191709,0.11173714,40426.0,40425.0,0.13632608]
[1610231191908,0.11204062,40426.0,40425.0,0.13632608]
[1610231192509,0.2483667,40426.0,40425.0,0.13632608]
[1610231195515,0.24836672,40426.0,40425.0,0.13632608]
[1610231202824,0.24836672,40426.0,40416.0,2.8084]
[1610231203223,0.03065711,40425.0,40416.0,2.8084]
[1610231203524,1.0,40418.0,40416.0,2.8084]
[1610231204023,0.03065893,40417.0,40416.0,2.8084]
[1610231204424,0.13230893,40417.0,40416.0,2.8084]
[1610231204624,0.26863501,40417.0,40416.0,2.94472608]
[1610231205426,0.26863501,40417.0,40416.0,0.13632608]
[1610231205627,1.26863501,40417.0,40416.0,0.13632608]
[1610231205826,1.13230893,40417.0,40416.0,0.13632608]
[1610231206728,1.26863501,40417.0,40416.0,0.13632608]
[1610231210232,1.13230893,40417.0,40416.0,0.13632608]
[1610231214840,1.19302123,40417.0,40416.0,0.13632608]
[1610231215439,1.13230893,40417.0,40416.0,0.13632608]
[1610231215639,0.13230893,40417.0,40416.0,0.13632608]
[1610231215839,0.19302083,40417.0,40416.0,0.13632608]
[1610231216239,0.13230893,40417.0,40416.0,0.13632608]
[1610231221949,0.19301943,40417.0,40416.0,0.13632608]
[1610231222448,0.13230893,40417.0,40416.0,0.13632608]
[1610231223748,0.19302122,40417.0,40416.0,0.13632608]
[1610231225951,0.13230893,40417.0,40416.0,0.13632608]
[1610231227553,1.13230893,40417.0,40416.0,0.13632608]
[1610231227954,1.19302619,40417.0,40416.0,0.13632608]
[1610231229254,1.19302619,40417.0,40406.0,2.7945]
[1610231229656,0.09137796,40416.0,40406.0,2.7945]
[1610231230154,0.03066171,40416.0,40406.0,2.7945]
[1610231230355,0.03066196,40415.0,40406.0,2.7945]
[1610231230757,0.03066189,40416.0,40406.0,2.7945]
[1610231230956,0.13632608,40410.0,40408.0,0.13632608]
[1610231236468,0.03066285,40409.0,40408.0,0.13632608]
[1610231249789,0.03066285,40409.0,40406.0,2.7945]
[1610231253899,0.03066285,40409.0,40400.0,0.1]
[1610231255299,0.13632608,40401.0,40400.0,0.1]
[1610231255500,0.24784608,40401.0,40400.0,0.1]
[1610231255900,0.2785144,40401.0,40400.0,0.1]
[1610231256104,0.33924361,40401.0,40400.0,0.1]
[1610231257904,0.2785144,40401.0,40400.0,0.1]
[1610231261705,1.2785144,40401.0,40400.0,0.1]
[1610231263610,0.2785144,40401.0,40400.0,0.1]
[1610231267722,1.2785144,40401.0,40400.0,0.1]
[1610231268320,1.33924233,40401.0,40400.0,0.1]
[1610231269621,0.33924233,40401.0,40400.0,0.1]
[1610231270121,0.2785144,40401.0,40400.0,0.1]
[1610231271624,1.2785144,40401.0,40400.0,0.1]
[1610231272024,1.33924352,40401.0,40400.0,0.1]
[1610231279531,0.33924352,40401.0,40400.0,0.1]
[1610231279932,0.2785144,40401.0,40400.0,0.1]
[1610231281535,1.2785144,40401.0,40400.0,0.1]
[1610231282034,1.9168595,40401.0,40400.0,0.1]
[1610231285641,0.9168595,40401.0,40400.0,0.1]
[1610231287543,1.9168595,40401.0,40400.0,0.1]
[1610231291447,1.3392595,40401.0,40400.0,0.1]
[1610231295452,1.43038535,40401.0,40400.0,0.1]
[1610231297055,1.3392595,40401.0,40400.0,0.1]
[1610231298357,1.43038742,40401.0,40400.0,0.1]
[1610231299558,0.43038742,40401.0,40400.0,0.1]
[1610231299760,1.43038742,40401.0,40400.0,0.1]
[1610231299959,1.2785144,40401.0,40400.0,0.1]
[1610231300159,1.43039275,40401.0,40400.0,0.1]
[1610231303662,1.43039275,40401.0,40379.0,0.13632608]
[1610231303862,0.13632608,40380.0,40379.0,0.13632608]
[1610231304263,0.16700659,40380.0,40379.0,0.13632608]
[1610231304463,0.24523659,40380.0,40379.0,0.13632608]
[1610231356028,0.30599795,40380.0,40379.0,0.13632608]
[1610231356529,0.30599795,40380.0,40361.0,1.0]
[1610231356732,0.16967187,40380.0,40376.0,0.13632608]
[1610231357132,0.03068373,40379.0,40376.0,0.13632608]
[1610231357433,3.1369,40377.0,40376.0,0.13632608]
[1610231357831,3.22834329,40377.0,40376.0,0.13632608]
[1610231358731,3.36466937,40377.0,40376.0,0.13632608]
[1610231361334,3.30390971,40377.0,40376.0,0.13632608]
[1610231364639,0.16700971,40377.0,40376.0,0.13632608]
[1610231364839,0.16700971,40377.0,40368.0,3.8548]
[1610231365240,0.0306835,40376.0,40368.0,3.8548]
[1610231366641,0.0306835,40376.0,40371.0,0.13632608]
[1610231367345,0.03068372,40378.0,40371.0,0.13632608]
[1610231367545,0.03038054,40375.0,40371.0,0.13632608]
[1610231367743,0.03068434,40375.0,40371.0,0.13632608]
[1610231367944,1.0,40376.0,40371.0,0.13632608]
[1610231368145,0.03068421,40374.0,40371.0,0.13632608]
[1610231368343,0.03068411,40375.0,40371.0,0.13632608]
[1610231368744,0.13632608,40372.0,40371.0,0.13632608]
[1610231369145,0.1670104,40372.0,40356.0,1.0]
[1610231369545,0.03068472,40371.0,40356.0,1.0]
[1610231369744,1.0,40368.0,40347.0,1.0]
[1610231370346,0.03069052,40367.0,40348.0,0.0002]
[1610231370745,0.03069052,40367.0,40357.0,0.13632608]
[1610231371749,1.03069052,40367.0,40357.0,0.13632608]
[1610231372048,0.03069119,40366.0,40357.0,0.13632608]
[1610231372849,0.13632608,40358.0,40357.0,0.13632608]
[1610231373151,0.13662995,40358.0,40357.0,0.13632608]
[1610231373551,0.13662995,40358.0,40346.0,1.0]
[1610231373752,0.13662995,40358.0,40345.0,0.1556]
[1610231373951,0.00030387,40357.0,40345.0,0.1556]
[1610231374752,0.00030387,40357.0,40346.0,0.13632608]
[1610231374954,0.03069328,40357.0,40346.0,0.13632608]
[1610231375252,0.03069354,40370.0,40346.0,0.13632608]
[1610231375653,1.0,40347.0,40346.0,0.13632608]
[1610231375852,1.0,40347.0,40332.0,0.1174]
[1610231376052,1.00030393,40347.0,40332.0,0.1174]
[1610231376252,2.8855,40346.0,40332.0,0.1174]
[1610231376451,2.88580393,40346.0,40332.0,0.1174]
[1610231376652,0.00030397,40345.0,40321.0,3.5572]
[1610231377653,0.03070576,40345.0,40321.0,3.5572]
[1610231378856,0.03070576,40345.0,40328.0,0.13632608]
[1610231380256,0.00030397,40345.0,40328.0,0.13632608]
[1610231380657,0.00030397,40345.0,40321.0,3.5572]
[1610231380856,0.13632608,40329.0,40324.0,0.13632608]
[1610231381056,0.22839608,40329.0,40324.0,0.13632608]
[1610231383658,0.09207,40329.0,40324.0,0.13632608]
[1610231384258,2.8855,40346.0,40324.0,0.13632608]
[1610231384861,2.8855,40346.0,40321.0,3.5572]
[1610231384862,2.8855,40346.0,40345.0,0.13632608]
[1610231385261,2.88580398,40346.0,40345.0,0.13632608]
[1610231385465,0.00030398,40346.0,40345.0,0.13632608]
[1610231385662,0.00030398,40346.0,40345.0,1.13632608]
[1610231385863,0.00030395,40348.0,40345.0,1.13632608]
[1610231386061,0.00030395,40346.0,40345.0,1.13632608]
[1610231386464,0.00030395,40348.0,40345.0,1.13632608]
[1610231386663,0.07474,40349.0,40345.0,1.0]
[1610231386864,6.94412608,40356.0,40348.0,0.13632608]
[1610231387264,0.00030394,40355.0,40348.0,0.13632608]
[1610231387463,0.07469394,40355.0,40348.0,0.13632608]
[1610231388068,0.00030394,40354.0,40348.0,0.13632608]
[1610231388766,0.00030394,40354.0,40353.0,0.13632608]
[1610231391771,0.00030394,40354.0,40353.0,1.13632608]
[1610231393575,0.00030394,40354.0,40353.0,0.13632608]
[1610231395675,0.00030394,40354.0,40353.0,1.13632608]
[1610231397678,0.00030394,40354.0,40353.0,0.13632608]
[1610231399780,0.00030394,40354.0,40353.0,1.13632608]
[1610231399980,0.00030392,40360.0,40353.0,1.13632608]
[1610231400179,0.00030392,40354.0,40353.0,1.13632608]
[1610231400379,0.00030392,40359.0,40353.0,1.13632608]
[1610231400680,0.00030392,40360.0,40353.0,1.13632608]
[1610231400881,0.00030392,40360.0,40359.0,0.13632608]
[1610231401080,0.13632608,40361.0,40359.0,0.13632608]
[1610231401280,0.00030392,40360.0,40359.0,0.13632608]
[1610231401880,0.00030392,40360.0,40351.0,3.6369]
[1610231402882,0.00030392,40360.0,40359.0,0.13632608]
[1610231403283,0.00030392,40360.0,40351.0,3.6369]
[1610231403785,0.00030392,40360.0,40352.0,1.0]
[1610231404285,0.00030392,40360.0,40359.0,0.5401]
[1610231404987,0.00030392,40360.0,40359.0,0.67642608]
[1610231406092,0.00030394,40360.0,40359.0,0.67642608]
[1610231406690,0.00030394,40360.0,40359.0,0.5401]
[1610231407089,0.00030394,40360.0,40359.0,0.67642608]
[1610231408090,0.00030394,40360.0,40359.0,0.5401]
[1610231411499,0.03069969,40360.0,40359.0,0.5401]
[1610231413705,0.03069969,40360.0,40355.0,0.13632608]
[1610231419407,0.13632608,40356.0,40355.0,0.13632608]
[1610231419809,0.16702593,40356.0,40355.0,0.13632608]
[1610231424614,0.16702593,40356.0,40355.0,3.94522608]
[1610231434229,0.16702593,40356.0,40355.0,3.8089]
[1610231434429,0.03069985,40356.0,40355.0,3.8089]
[1610231434828,0.03069809,40361.0,40355.0,3.8089]
[1610231435027,0.03069809,40356.0,40355.0,3.8089]
[1610231435428,0.03069811,40360.0,40355.0,3.8089]
[1610231435628,0.03069821,40356.0,40355.0,4.8089]
[1610231435828,0.03069825,40359.0,40355.0,4.8089]
[1610231436030,0.00030394,40356.0,40355.0,4.8089]
[1610231436230,0.03069828,40356.0,40355.0,4.8089]
[1610231436434,0.03069805,40361.0,40355.0,4.8089]
[1610231436629,0.00030394,40356.0,40355.0,4.8089]
[1610231437029,0.03069761,40360.0,40355.0,4.8089]
[1610231437230,0.00030394,40356.0,40355.0,4.8089]
[1610231437430,0.03069752,40359.0,40355.0,4.8089]
[1610231437630,0.03039358,40359.0,40358.0,0.13632608]
[1610231437829,0.03039394,40360.0,40358.0,0.13632608]
[1610231438029,0.00030394,40359.0,40358.0,0.13632608]
[1610231438229,0.03069693,40359.0,40358.0,0.13632608]
[1610231438430,0.00030394,40359.0,40358.0,0.13632608]
[1610231438631,0.03069679,40361.0,40358.0,0.13632608]
[1610231438831,0.00030394,40359.0,40358.0,0.13632608]
[1610231439030,0.00030394,40360.0,40358.0,0.13632608]
[1610231439432,0.00030394,40359.0,40358.0,0.13632608]
[1610231439831,0.00030394,40361.0,40358.0,0.13632608]
[1610231440232,0.00030394,40359.0,40358.0,0.13632608]
[1610231440435,0.00030394,40360.0,40358.0,0.13632608]
[1610231440636,0.00030394,40359.0,40358.0,0.13632608]
[1610231441136,0.00030392,40361.0,40358.0,0.13632608]
[1610231441336,0.00030392,40359.0,40358.0,0.13632608]
[1610231441738,0.00030392,40361.0,40358.0,0.13632608]
[1610231441940,0.07335,40362.0,40360.0,3.6224]
[1610231442338,0.07935,40371.0,40360.0,3.6224]
[1610231442538,0.00030392,40361.0,40360.0,3.6224]
[1610231442739,0.0306964,40370.0,40360.0,3.6224]
[1610231442939,0.10328392,40361.0,40360.0,3.6224]
[1610231445745,0.10328392,40361.0,40360.0,4.6224]
[1610231447047,0.1766839,40361.0,40360.0,4.6224]
[1610231447245,0.1032839,40361.0,40360.0,4.6224]
[1610231447645,0.1032839,40361.0,40360.0,3.6224]
[1610231449651,0.1032839,40361.0,40360.0,4.6224]
[1610231451254,0.10298,40361.0,40360.0,4.6537]
[1610231451454,0.06077898,40389.0,40360.0,4.6537]
[1610231451654,0.08898,40361.0,40360.0,3.6537]
[1610231453655,0.08898,40361.0,40360.0,4.6537]
[1610231456564,0.13632608,40379.0,40360.0,4.6537]
[1610231456962,0.0306946,40378.0,40360.0,4.6537]
[1610231457163,0.1303046,40378.0,40360.0,4.6835]
[1610231457563,0.03069462,40377.0,40360.0,4.6835]
[1610231457763,0.03069462,40377.0,40376.0,0.13632608]
[1610231459965,0.03069462,40377.0,40367.0,1.0]
[1610231461766,0.03069462,40377.0,40376.0,0.13632608]
[1610231462665,0.03069462,40377.0,40364.0,1.0]
[1610231463766,0.13632608,40373.0,40366.0,0.13632608]
[1610231464167,0.03069483,40372.0,40366.0,0.13632608]
[1610231465870,0.03069483,40372.0,40371.0,0.13632608]
[1610231466473,0.03069483,40372.0,40360.0,0.0298]
[1610231467673,0.03069483,40372.0,40361.0,1.0]
[1610231467872,0.03069483,40372.0,40371.0,0.13632608]
[1610231482995,0.03069468,40377.0,40371.0,0.13632608]
[1610231483195,0.09961,40378.0,40371.0,0.13632608]
[1610231483196,0.03069508,40372.0,40371.0,0.13632608]
[1610231483396,0.03069491,40376.0,40371.0,0.13632608]
[1610231483796,0.03069515,40372.0,40371.0,0.13632608]
[1610231483997,0.0306949,40375.0,40371.0,0.13632608]
[1610231484197,0.03069477,40372.0,40371.0,0.13632608]
[1610231484396,0.00030391,40372.0,40371.0,0.13632608]
[1610231484597,0.03069483,40374.0,40371.0,0.13632608]
[1610231484797,0.00030391,40372.0,40371.0,0.13632608]
[1610231484998,0.0306956,40373.0,40371.0,0.13632608]
[1610231485198,0.00030391,40372.0,40371.0,0.13632608]
[1610231485598,0.03069532,40377.0,40371.0,0.13632608]
[1610231485798,0.00030391,40372.0,40371.0,0.13632608]
[1610231486198,0.03069472,40376.0,40371.0,0.13632608]
[1610231486399,0.00030391,40372.0,40371.0,0.13632608]
[1610231486599,0.03069456,40375.0,40371.0,0.13632608]
[1610231486798,0.00030391,40372.0,40371.0,0.13632608]
[1610231487200,0.03069456,40374.0,40371.0,0.13632608]
[1610231487399,0.00030391,40372.0,40371.0,0.13632608]
[1610231487600,0.03069464,40373.0,40371.0,0.13632608]
[1610231487799,0.00030391,40373.0,40371.0,0.13632608]
[1610231487999,0.03069496,40377.0,40371.0,0.13632608]
[1610231488199,0.00030391,40372.0,40371.0,0.13632608]
[1610231488399,0.00030391,40376.0,40371.0,0.13632608]
[1610231488799,0.03069496,40377.0,40371.0,0.13632608]
[1610231489000,0.00030391,40375.0,40371.0,0.13632608]
[1610231489202,0.00030391,40376.0,40371.0,0.13632608]
[1610231489601,0.03069496,40377.0,40371.0,0.13632608]
[1610231489802,0.00030391,40375.0,40371.0,0.13632608]
[1610231490001,0.00030391,40376.0,40371.0,0.13632608]
[1610231490404,0.03069496,40377.0,40371.0,0.13632608]
[1610231490604,0.00030391,40375.0,40371.0,0.13632608]
[1610231490802,0.00030391,40376.0,40371.0,0.13632608]
[1610231491205,0.03069496,40377.0,40371.0,0.13632608]
[1610231491402,0.00030391,40375.0,40371.0,0.13632608]
[1610231491604,0.00030391,40376.0,40371.0,0.13632608]
[1610231492005,0.03069496,40377.0,40371.0,0.13632608]
[1610231492205,0.00030391,40375.0,40371.0,0.13632608]
[1610231492405,0.00030389,40376.0,40371.0,0.13632608]
[1610231492707,0.03069494,40377.0,40371.0,0.13632608]
[1610231492906,0.00030389,40375.0,40371.0,0.13632608]
[1610231493307,0.03069494,40377.0,40371.0,0.13632608]
[1610231493508,0.00030389,40374.0,40371.0,0.13632608]
[1610231493709,0.00030389,40376.0,40371.0,0.13632608]
[1610231494109,0.03069494,40377.0,40371.0,0.13632608]
[1610231494308,0.00030389,40375.0,40371.0,0.13632608]
[1610231494708,0.00030389,40376.0,40371.0,0.13632608]
[1610231494908,0.00030386,40374.0,40371.0,0.13632608]
[1610231495108,0.00030386,40375.0,40371.0,0.13632608]
[1610231495309,0.09961,40378.0,40371.0,0.13632608]
[1610231495508,1.0,40384.0,40371.0,0.13632608]
[1610231495708,0.99306876,40412.0,40371.0,0.13632608]
[1610231495709,0.00030382,40377.0,40371.0,0.13632608]
[1610231495911,0.11481,40378.0,40371.0,0.13632608]
[1610231496110,0.11481,40378.0,40377.0,0.13632608]
[1610231497812,0.1151138,40378.0,40377.0,1.13632608]
[1610231498212,0.11481,40378.0,40377.0,1.13632608]
[1610231498412,0.06075773,40404.0,40377.0,1.13632608]
[1610231498814,0.09143898,40404.0,40377.0,1.13632608]
[1610231499812,0.09143898,40404.0,40388.0,1.0]
[1610231500011,0.09143898,40404.0,40403.0,0.13632608]
[1610231500211,0.09143482,40407.0,40403.0,0.13632608]
[1610231500412,0.03068084,40404.0,40403.0,0.13632608]
[1610231500612,0.11893,40404.0,40388.0,1.0]
[1610231501011,0.14961082,40404.0,40388.0,1.0]
[1610231501214,0.0306808,40403.0,40388.0,1.0]
[1610231501812,0.0306808,40403.0,40362.0,2.56329102]
[1610231502012,0.0306808,40403.0,40402.0,0.13632608]
[1610231502613,0.0306808,40403.0,40361.0,2.71857599]
[1610231503011,0.0306808,40403.0,40362.0,0.0002]
[1610231503413,0.0306808,40403.0,40362.0,2.56267683]
[1610231503813,0.0306808,40403.0,40385.0,1.0]
[1610231504014,0.0306808,40403.0,40402.0,0.13632608]
[1610231517032,0.0306808,40403.0,40402.0,0.70382608]
[1610231526143,0.0306808,40403.0,40402.0,0.5675]
[1610231526543,0.0306808,40403.0,40392.0,3.824]
[1610231527845,1.0,40393.0,40392.0,3.824]
[1610231528246,1.17917132,40393.0,40392.0,3.824]
[1610231528447,1.3154974,40393.0,40392.0,3.824]
[1610231529749,0.3154974,40393.0,40392.0,3.824]
[1610231530349,0.2547324,40393.0,40392.0,3.824]
[1610231531751,1.2547324,40393.0,40392.0,3.824]
[1610231532154,1.31550066,40393.0,40392.0,3.824]
[1610231533655,0.31550066,40393.0,40392.0,3.824]
[1610231534056,0.2547324,40393.0,40392.0,3.824]
[1610231535757,6.2547324,40393.0,40392.0,3.824]
[1610231535958,6.7525324,40393.0,40379.0,2.8351]
[1610231536159,6.81330662,40393.0,40379.0,2.8351]
[1610231536358,0.13632608,40380.0,40379.0,2.8351]
[1610231536559,0.23297608,40380.0,40379.0,2.8351]
[1610231536959,0.26366707,40380.0,40379.0,2.8351]
[1610231537460,0.23327995,40380.0,40379.0,2.8351]
[1610231537862,1.23327995,40380.0,40379.0,2.8351]
[1610231538260,1.26366839,40380.0,40379.0,2.8351]
[1610231539664,6.26366839,40380.0,40379.0,2.8351]
[1610231540462,7.76366839,40380.0,40379.0,2.8351]
[1610231540663,10.94606839,40380.0,40360.0,0.0298]
[1610231541063,0.03070751,40379.0,40360.0,0.0298]
[1610231541464,0.31720751,40379.0,40360.0,0.0298]